bitfinex/quotes_BTCUSD_20220202
["timestamp","ask_amount","ask_price","bid_price","bid_amount"]
[1643812779518,0.16298028,37951.0,37948.0,0.26756]
[1643812779716,0.16298028,37951.0,37949.0,0.46585]
[1643812780317,0.16274702,37951.0,37950.0,0.15171]
[1643812780518,0.15774702,37951.0,37950.0,0.61753]
[1643812780721,0.44871564,37951.0,37950.0,0.61753]
[1643812780920,0.15774702,37951.0,37950.0,0.61753]
[1643812782474,0.40042363,37964.0,37951.0,0.06584]
[1643812782670,0.40042363,37964.0,37952.0,0.36465]
[1643812782969,0.40657147,37968.0,37954.0,0.1517]
[1643812783168,0.40657147,37968.0,37956.0,0.10115]
[1643812783369,0.2305044,37959.0,37957.0,0.26345]
[1643812783571,0.2305044,37959.0,37957.0,0.36459]
[1643812783770,0.32268643,37959.0,37957.0,0.36459]
[1643812783974,0.61513099,37959.0,37957.0,0.36459]
[1643812784174,0.61513099,37959.0,37954.0,0.00049453]
[1643812784175,0.3509056,37958.0,37954.0,0.00049453]
[1643812784373,0.350452,37957.0,37943.0,0.06586]
[1643812784572,0.25109043,37951.0,37944.0,0.26464]
[1643812784769,0.30639852,37952.0,37944.0,0.26464]
[1643812784970,0.30639852,37952.0,37944.0,0.396341]
[1643812785171,0.09858827,37951.0,37944.0,0.396341]
[1643812785572,0.44139128,37951.0,37944.0,0.396341]
[1643812785828,0.21977937,37948.0,37944.0,0.396341]
[1643812786624,0.44139128,37951.0,37944.0,0.396341]
[1643812787222,0.09858827,37951.0,37946.0,0.00049102]
[1643812788022,0.09858827,37951.0,37947.0,0.06585]
[1643812788221,0.09858827,37951.0,37944.0,0.132801]
[1643812788422,0.09858827,37951.0,37947.0,0.00049101]
[1643812789326,0.4625,37967.0,37944.0,0.132801]
[1643812789327,0.065847,37966.0,37948.0,0.07194595]
[1643812789585,0.798,37972.0,37948.0,0.07194595]
[1643812789586,0.00267277,37970.0,37954.0,0.13166]
[1643812789779,0.00267277,37970.0,37958.0,0.0369706]
[1643812790183,0.00267277,37970.0,37959.0,0.59153828]
[1643812790380,0.00267277,37970.0,37961.0,0.065819]
[1643812790578,0.065809,37987.0,37962.0,0.59151828]
[1643812790782,0.00208557,37972.0,37965.0,0.4]
[1643812790981,0.00052124,37983.0,37967.0,0.8]
[1643812791180,0.00052124,37983.0,37972.0,0.2]
[1643812791380,0.00052124,37983.0,37975.0,0.065774]
[1643812791583,0.07501105,37983.0,37976.0,0.0442]
[1643812791784,0.07448981,37983.0,37976.0,0.0442]
[1643812791980,0.20529458,37975.0,37973.0,0.197322]
[1643812792185,0.07448981,37983.0,37969.0,0.201]
[1643812792186,1.12809828,37981.0,37969.0,0.201]
[1643812792383,1.12809828,37981.0,37966.0,0.26339]
[1643812792384,0.35678576,37973.0,37966.0,0.26339]
[1643812792579,0.35678576,37973.0,37966.0,0.329213]
[1643812792580,0.32309828,37972.0,37966.0,0.329213]
[1643812792781,0.35678576,37973.0,37966.0,0.329213]
[1643812792980,0.08729239,37974.0,37966.0,0.629213]
[1643812793225,0.24238604,37974.0,37966.0,0.629213]
[1643812793425,0.22486523,37968.0,37966.0,0.629213]
[1643812793626,0.22486523,37968.0,37966.0,0.329213]
[1643812793824,0.7604,37983.0,37966.0,0.329212]
[1643812793825,0.28823726,37974.0,37966.0,0.329212]
[1643812794225,0.32809828,37979.0,37966.0,0.329212]
[1643812794529,0.09058797,37974.0,37966.0,0.329212]
[1643812794923,0.09058797,37974.0,37966.0,0.529672]
[1643812795125,0.09058797,37974.0,37966.0,0.329212]
[1643812795325,0.22396368,37978.0,37969.0,0.131619]
[1643812795526,0.22396368,37978.0,37969.0,0.131319]
[1643812795826,0.20346682,37973.0,37969.0,0.131319]
[1643812796024,0.20346682,37973.0,37954.0,0.32809828]
[1643812796025,0.8,37971.0,37954.0,0.32809828]
[1643812796227,0.24516908,37962.0,37954.0,0.20052]
[1643812796424,0.24516908,37962.0,37961.0,0.431649]
[1643812796625,0.24516908,37962.0,37954.0,0.20052]
[1643812796626,0.49516908,37962.0,37954.0,0.15199279]
[1643812796828,0.49516908,37962.0,37944.0,0.0611]
[1643812796829,0.2792028,37945.0,37944.0,0.0611]
[1643812797102,0.30219682,37946.0,37944.0,0.26464]
[1643812797496,0.10465726,37945.0,37944.0,0.26464]
[1643812798206,0.90465726,37945.0,37941.0,0.27185265]
[1643812798398,0.90465726,37945.0,37939.0,0.0031]
[1643812798399,1.23275554,37945.0,37939.0,0.27495265]
[1643812798597,1.23275554,37945.0,37939.0,0.37614265]
[1643812798598,0.10436209,37945.0,37939.0,0.37614265]
[1643812799198,0.10436209,37945.0,37940.0,0.00049206]
[1643812799397,0.0923019,37945.0,37940.0,0.00049206]
[1643812799797,0.131729,37951.0,37942.0,0.065857]
[1643812800001,0.32809828,37953.0,37942.0,0.065857]
[1643812800002,0.065857,37953.0,37942.0,0.065857]
[1643812800197,0.32809828,37957.0,37945.0,0.131697]
[1643812800398,0.32809828,37963.0,37945.0,0.13218901]
[1643812800597,0.32809828,37958.0,37945.0,0.13218901]
[1643812800822,0.07756565,37953.0,37947.0,0.08286524]
[1643812801024,0.07756565,37953.0,37947.0,0.19871424]
[1643812801222,0.07756565,37953.0,37947.0,0.065849]
[1643812801423,0.37845525,37953.0,37947.0,0.065849]
[1643812801625,0.37713399,37953.0,37948.0,0.00049196]
[1643812801823,0.28072315,37949.0,37948.0,0.00049196]
[1643812802022,0.59861432,37949.0,37948.0,0.00049196]
[1643812802421,0.28072315,37949.0,37948.0,0.00049196]
[1643812802624,0.09600545,37944.0,37941.0,0.51768335]
[1643812802824,0.09600545,37944.0,37941.0,0.51571513]
[1643812803026,0.27638396,37948.0,37941.0,0.51571513]
[1643812803224,0.35508354,37953.0,37941.0,0.51571513]
[1643812803424,0.29573546,37956.0,37941.0,0.51571513]
[1643812803425,0.32188371,37955.0,37941.0,0.51571513]
[1643812803825,0.38774271,37955.0,37941.0,0.51571513]
[1643812804029,0.38774271,37955.0,37946.0,0.00012124]
[1643812804227,0.064859,37955.0,37946.0,0.00012124]
[1643812804475,0.26271284,37951.0,37946.0,0.06597824]
[1643812804979,0.25771284,37951.0,37946.0,0.065857]
[1643812805176,0.25462001,37948.0,37947.0,0.00012124]
[1643812805779,0.85462001,37948.0,37947.0,0.00012124]
[1643812806178,0.25462001,37948.0,37941.0,0.3613643]
[1643812806379,0.29820488,37945.0,37941.0,0.36087927]
[1643812806979,0.27748282,37942.0,37941.0,0.36087927]
[1643812807178,0.29820488,37945.0,37941.0,0.36087927]
[1643812807582,0.09413261,37950.0,37941.0,0.23979028]
[1643812807583,0.08413261,37950.0,37941.0,0.23979028]
[1643812808322,0.23234892,37945.0,37941.0,0.23979028]
[1643812808725,0.30002162,37944.0,37941.0,0.23979028]
[1643812809122,0.23234892,37945.0,37941.0,0.23979028]
[1643812809423,0.08824678,37944.0,37941.0,0.23979028]
[1643812809922,0.08824678,37944.0,37941.0,0.11295104]
[1643812810127,0.08824678,37944.0,37939.0,0.134826]
[1643812810323,0.08824678,37944.0,37941.0,0.07906573]
[1643812810523,0.08824678,37944.0,37939.0,0.08216573]
[1643812810922,0.24309362,37943.0,37939.0,0.08216573]
[1643812811322,0.24309362,37943.0,37940.0,0.00049072]
[1643812811725,0.06587451,37946.0,37940.0,0.00049072]
[1643812811726,0.065876,37947.0,37940.0,0.06635972]
[1643812811979,0.197611,37953.0,37940.0,0.06635972]
[1643812812179,3.3892,37954.0,37940.0,0.3914343]
[1643812812382,3.3892,37954.0,37941.0,0.00744056]
[1643812812579,0.06585153,37961.0,37946.0,0.131705]
[1643812812580,0.25487498,37953.0,37946.0,0.131705]
[1643812812785,0.08282334,37949.0,37946.0,0.131705]
[1643812812978,0.08282334,37949.0,37945.0,0.00049066]
[1643812813181,0.24474405,37947.0,37945.0,0.00049066]
[1643812813379,1.1255653,37946.0,37945.0,0.00049066]
[1643812813580,0.28462733,37942.0,37941.0,0.07827532]
[1643812813779,0.065874,37947.0,37939.0,0.08137532]
[1643812813978,0.960114,37964.0,37939.0,0.08137532]
[1643812813979,0.3255653,37958.0,37939.0,0.08137532]
[1643812814181,0.065864,37955.0,37939.0,0.08137532]
[1643812814378,0.3255653,37954.0,37939.0,0.08137532]
[1643812814577,0.3914213,37959.0,37939.0,0.08137532]
[1643812814779,0.09115322,37952.0,37947.0,0.08377161]
[1643812814979,0.3255653,37957.0,37947.0,0.33666667]
[1643812815183,3.45505504,37960.0,37948.0,0.3255653]
[1643812815184,3.3892,37960.0,37948.0,0.3255653]
[1643812815386,3.3892,37960.0,37950.0,0.197499]
[1643812815580,3.3892,37963.0,37950.0,0.1974]
[1643812815836,0.23479029,37953.0,37950.0,0.1974]
[1643812816037,0.23479029,37953.0,37947.0,0.12165894]
[1643812816236,0.13170906,37961.0,37947.0,0.12165894]
[1643812816635,0.13170906,37961.0,37947.0,0.00047188]
[1643812816636,0.05,37957.0,37947.0,0.00047188]
[1643812816834,0.37297997,37956.0,37947.0,0.00047188]
[1643812817037,0.37297997,37956.0,37941.0,0.27843532]
[1643812817038,0.05,37953.0,37941.0,0.27843532]
[1643812817236,0.13175077,37947.0,37941.0,0.27843532]
[1643812817436,0.19762376,37955.0,37941.0,0.34619411]
[1643812817837,0.06186476,37952.0,37941.0,0.14603411]
[1643812818437,0.37210055,37954.0,37941.0,0.14603411]
[1643812818438,0.24035155,37954.0,37941.0,0.26531709]
[1643812818638,0.29751518,37953.0,37947.0,0.065851]
[1643812818837,0.3036953,37953.0,37947.0,0.065851]
[1643812819037,0.3036953,37953.0,37949.0,0.2]
[1643812819238,0.25475468,37951.0,37949.0,0.2]
[1643812819674,0.06586121,37952.0,37949.0,0.2]
[1643812819874,0.24035155,37954.0,37949.0,0.2]
[1643812820678,0.23195303,37953.0,37949.0,0.2]
[1643812821275,0.30523109,37952.0,37949.0,0.2]
[1643812821476,0.065866,37951.0,37949.0,0.2]
[1643812821875,0.13172873,37951.0,37949.0,0.2]
[1643812822075,0.06586073,37951.0,37949.0,0.2]
[1643812823423,0.52474419,37953.0,37949.0,0.2]
[1643812823424,0.4,37950.0,37949.0,0.2]
[1643812824223,0.395,37950.0,37949.0,0.2]
[1643812824624,0.8,37949.0,37947.0,0.00041411]
[1643812824824,1.4760173,37948.0,37947.0,0.00041411]
[1643812825024,1.75320183,37948.0,37947.0,0.00041411]
[1643812825224,5.19165916,37948.0,37947.0,0.00041411]
[1643812825423,4.94891334,37948.0,37947.0,0.00041411]
[1643812825625,0.09964618,37942.0,37941.0,0.05474638]
[1643812825829,0.09964618,37942.0,37940.0,0.00165675]
[1643812826324,0.69283215,37941.0,37940.0,0.00165675]
[1643812826524,1.02676685,37941.0,37940.0,0.00165675]
[1643812826724,1.28123154,37941.0,37939.0,0.0031]
[1643812826972,1.28079086,37941.0,37940.0,0.03833227]
[1643812827173,0.24239147,37941.0,37940.0,0.03833227]
[1643812827572,0.64239147,37941.0,37940.0,0.03833227]
[1643812827775,0.8,37939.0,37936.0,0.001]
[1643812827978,0.3255653,37938.0,37931.0,0.0121]
[1643812828173,0.8,37939.0,37922.0,0.0011]
[1643812828174,0.8,37936.0,37922.0,0.0011]
[1643812828378,0.8,37936.0,37931.0,0.01533954]
[1643812828379,0.35537758,37935.0,37931.0,0.01533954]
[1643812828574,0.68094288,37935.0,37922.0,0.0011]
[1643812828775,0.32640493,37930.0,37927.0,0.0011]
[1643812828976,0.32640493,37930.0,37923.0,0.09065]
[1643812828977,1.06031872,37929.0,37923.0,0.09065]
[1643812829176,0.75,37925.0,37916.0,0.38137156]
[1643812829381,0.3255653,37924.0,37923.0,0.017916]
[1643812829577,0.8,37926.0,37915.0,0.001]
[1643812829777,0.28721435,37925.0,37915.0,0.001]
[1643812829979,0.3059852,37924.0,37915.0,0.001]
[1643812830277,0.27960635,37916.0,37915.0,0.001]
[1643812830476,0.27960635,37916.0,37915.0,0.066908]
[1643812831134,0.27960635,37916.0,37907.0,0.002]
[1643812831331,0.27960635,37916.0,37899.0,0.1]
[1643812831332,0.8,37914.0,37899.0,0.1]
[1643812831545,0.24608652,37903.0,37899.0,0.1]
[1643812831731,0.23608652,37903.0,37902.0,0.001]
[1643812832130,0.50694477,37903.0,37902.0,0.001]
[1643812832332,0.50694477,37903.0,37902.0,0.066934]
[1643812832533,0.09003726,37904.0,37902.0,0.066934]
[1643812833135,0.37877802,37891.0,37888.0,0.1]
[1643812833333,0.37877802,37891.0,37890.0,0.26392]
[1643812833538,0.37877802,37891.0,37884.0,0.001]
[1643812833539,0.88603287,37891.0,37884.0,0.001]
[1643812833734,0.85210984,37891.0,37886.0,0.065964]
[1643812834331,0.7,37889.0,37884.0,0.001]
[1643812834577,0.3255653,37888.0,37884.0,0.001]
[1643812834772,0.4652949,37890.0,37875.0,0.53772]
[1643812834974,0.1397296,37890.0,37877.0,0.065978]
[1643812835171,0.0912296,37890.0,37877.0,0.065978]
[1643812835373,0.3255653,37889.0,37887.0,0.131905]
[1643812835571,0.3740653,37899.0,37887.0,0.131905]
[1643812835572,0.08389759,37897.0,37887.0,0.131905]
[1643812835771,0.08389759,37897.0,37887.0,0.116905]
[1643812835971,0.06595639,37898.0,37887.0,0.116905]
[1643812836181,0.065955,37905.0,37887.0,0.116905]
[1643812836182,0.13190356,37905.0,37888.0,0.3255653]
[1643812836372,0.30635295,37909.0,37892.0,0.131879]
[1643812836574,0.7822,37911.0,37892.0,0.131879]
[1643812836575,0.7822,37911.0,37893.0,0.0485]
[1643812836773,0.2319466,37908.0,37893.0,0.0485]
[1643812836974,0.29463877,37900.0,37892.0,0.181879]
[1643812837274,0.45,37913.0,37893.0,0.06594]
[1643812837275,1.1232653,37912.0,37893.0,0.06594]
[1643812837473,1.1232653,37912.0,37893.0,0.00792836]
[1643812837474,0.31433501,37911.0,37893.0,0.00792836]
[1643812837673,0.3255653,37910.0,37898.0,0.131857]
[1643812837875,0.26389722,37913.0,37898.0,0.6074223]
[1643812838073,0.00052089,37914.0,37898.0,0.6074223]
[1643812838325,0.2777267,37904.0,37899.0,0.14560909]
[1643812838524,0.2777267,37904.0,37899.0,0.56162087]
[1643812838734,0.2777267,37904.0,37899.0,0.61162087]
[1643812838926,0.2777267,37904.0,37899.0,0.114429]
[1643812839525,0.00052088,37914.0,37899.0,0.114429]
[1643812839928,0.08444651,37912.0,37899.0,0.114429]
[1643812840126,0.26211428,37909.0,37905.0,0.065923]
[1643812840430,0.26211428,37909.0,37905.0,0.06640184]
[1643812840431,0.26822034,37909.0,37905.0,0.06640184]
[1643812841231,0.50945929,37909.0,37905.0,0.06640184]
[1643812841428,0.50945929,37909.0,37905.0,0.065923]
[1643812841828,0.26822034,37909.0,37905.0,0.065923]
[1643812842068,0.3131696,37908.0,37905.0,0.065923]
[1643812842268,0.26822034,37909.0,37905.0,0.065923]
[1643812842470,0.3131696,37908.0,37899.0,0.131864]
[1643812842670,0.26822034,37909.0,37899.0,0.131864]
[1643812842871,0.27978103,37901.0,37899.0,0.131864]
[1643812843169,0.27978103,37901.0,37899.0,0.126864]
[1643812843568,0.09126558,37903.0,37899.0,0.126864]
[1643812843773,0.25417958,37904.0,37899.0,0.126864]
[1643812843971,0.33651947,37900.0,37899.0,0.126864]
[1643812844173,0.33651947,37900.0,37895.0,0.065946]
[1643812844370,0.2565186,37898.0,37895.0,0.065946]
[1643812844570,0.2421795,37892.0,37888.0,0.131905]
[1643812844772,0.3131696,37897.0,37888.0,0.131905]
[1643812844973,0.1048341,37890.0,37878.0,0.00744056]
[1643812845171,0.1048341,37890.0,37888.0,0.00047925]
[1643812845837,0.66528685,37889.0,37888.0,0.00047925]
[1643812846234,0.99534779,37889.0,37878.0,0.0031]
[1643812846439,0.06597573,37886.0,37878.0,0.0031]
[1643812846637,0.32180777,37883.0,37878.0,0.0031]
[1643812847640,0.32180777,37883.0,37873.0,0.263809]
[1643812847641,0.57938377,37882.0,37873.0,0.263809]
[1643812847945,0.85,37879.0,37861.0,0.00220234]
[1643812848241,1.19970933,37881.0,37857.0,0.002]
[1643812848242,21.31174214,37878.0,37857.0,0.002]
[1643812848437,21.31174214,37878.0,37861.0,0.066]
[1643812848638,0.24841444,37867.0,37861.0,0.066]
[1643812848838,0.06599958,37872.0,37861.0,0.066]
[1643812849042,21.0,37878.0,37861.0,0.37781414]
[1643812849239,0.005,37869.0,37862.0,0.005]
[1643812849472,21.0,37878.0,37862.0,0.31181414]
[1643812849772,0.31174214,37877.0,37866.0,0.065984]
[1643812849972,0.31174214,37877.0,37868.0,0.00047876]
[1643812850573,21.0,37878.0,37869.0,0.38246278]
[1643812850875,21.0,37878.0,37870.0,0.165982]
[1643812851074,21.0,37878.0,37874.0,0.20076]
[1643812851273,20.604261,37878.0,37875.0,0.31840902]
[1643812851474,20.604261,37878.0,37876.0,0.09023744]
[1643812851676,20.208602,37878.0,37877.0,1.46010075]
[1643812851873,16.99331294,37878.0,37877.0,1.76234056]
[1643812852076,14.95136914,37878.0,37877.0,1.86234056]
[1643812852274,13.02792908,37878.0,37877.0,2.19980623]
[1643812852477,6.86462908,37878.0,37877.0,2.19980623]
[1643812852674,6.86462908,37878.0,37877.0,2.56352923]
[1643812852876,0.33651947,37900.0,37878.0,0.65]
[1643812853077,0.33651947,37900.0,37893.0,0.05]
[1643812853330,0.33651947,37900.0,37896.0,0.6064]
[1643812853331,0.33690947,37900.0,37896.0,0.6064]
[1643812853529,0.33651947,37900.0,37897.0,0.0485]
[1643812853927,1.0278038,37898.0,37897.0,0.0485]
[1643812854130,0.8,37898.0,37897.0,0.0485]
[1643812854331,0.33651947,37900.0,37897.0,0.0485]
[1643812854826,0.33651947,37900.0,37897.0,0.19905832]
[1643812855425,0.08579779,37899.0,37897.0,0.19905832]
[1643812855626,0.07811274,37899.0,37897.0,0.19905832]
[1643812855825,0.07811274,37899.0,37897.0,0.19866753]
[1643812855826,0.07787985,37899.0,37897.0,0.19866753]
[1643812856428,0.33651947,37900.0,37897.0,0.24866753]
[1643812856628,0.33651947,37900.0,37899.0,0.08]
[1643812857076,0.33651947,37900.0,37899.0,0.1285]
[1643812857376,0.32874815,37898.0,37895.0,2e-06]
[1643812857580,0.32874815,37898.0,37894.0,0.131842]
[1643812857581,0.24640634,37896.0,37894.0,0.181842]
[1643812857778,0.8,37895.0,37894.0,0.1]
[1643812857978,0.8,37895.0,37894.0,0.165943]
[1643812858176,0.79991958,37895.0,37894.0,0.1]
[1643812858576,0.79991958,37895.0,37891.0,0.131888]
[1643812858777,0.79991958,37895.0,37891.0,0.180388]
[1643812858778,1.02747389,37895.0,37891.0,0.180388]
[1643812859386,0.79991958,37895.0,37891.0,0.14293965]
[1643812859580,0.33651947,37900.0,37891.0,0.14293965]
[1643812859778,0.33651947,37900.0,37893.0,0.25028]
[1643812859979,0.33651947,37900.0,37894.0,0.0485]
[1643812860181,0.61072909,37900.0,37894.0,0.0485]
[1643812860380,0.33651947,37900.0,37894.0,0.3319293]
[1643812860579,0.33651947,37900.0,37895.0,0.065935]
[1643812860823,0.33651947,37900.0,37896.0,0.0485]
[1643812861228,0.58309918,37900.0,37898.0,0.20076]
[1643812861424,0.33629614,37900.0,37899.0,0.0485]
[1643812861623,0.33629614,37900.0,37895.0,0.065935]
[1643812861824,3.72549614,37900.0,37899.0,0.0485]
[1643812862224,1.08129614,37900.0,37899.0,0.0485]
[1643812862423,1.08129614,37900.0,37896.0,0.00047744]
[1643812862622,0.8,37897.0,37896.0,0.00047744]
[1643812863124,0.8,37897.0,37895.0,0.065935]
[1643812863325,0.33129614,37900.0,37895.0,0.06641245]
[1643812863525,0.33129614,37900.0,37897.0,0.197762]
[1643812863526,0.3414451,37899.0,37897.0,0.197762]
[1643812863725,1.05861488,37898.0,37897.0,0.197762]
[1643812863925,0.8,37898.0,37897.0,0.197762]
[1643812864324,0.33129614,37900.0,37897.0,0.246262]
[1643812864584,0.33129614,37900.0,37897.0,0.39438789]
[1643812864778,0.33129614,37900.0,37898.0,0.1]
[1643812864979,0.25575,37903.0,37899.0,0.0485]
[1643812865184,0.25575,37903.0,37902.0,0.05]
[1643812865382,0.7338,37920.0,37903.0,0.35]
[1643812865581,0.688,37921.0,37907.0,0.05]
[1643812865780,0.688,37921.0,37908.0,0.0485]
[1643812865981,0.00066247,37910.0,37908.0,0.0485]
[1643812866182,0.10364465,37920.0,37908.0,0.0485]
[1643812866183,0.32643368,37917.0,37908.0,0.48194275]
[1643812866380,0.32643368,37917.0,37909.0,0.15]
[1643812866581,0.33643368,37919.0,37910.0,0.0485]
[1643812866780,0.49726546,37918.0,37913.0,0.24]
[1643812866980,0.2752838,37916.0,37914.0,0.0485]
[1643812867184,0.8,37915.0,37914.0,0.0485]
[1643812867979,3.3892,37915.0,37913.0,0.371803]
[1643812868229,0.84624964,37914.0,37913.0,0.371803]
[1643812869325,1.07702064,37914.0,37913.0,0.371803]
[1643812869529,1.36234445,37914.0,37909.0,0.131776]
[1643812870025,0.27346108,37913.0,37909.0,0.131776]
[1643812870230,0.25417753,37913.0,37909.0,0.131776]
[1643812870424,0.22423851,37911.0,37909.0,0.131776]
[1643812871425,0.25484006,37913.0,37909.0,0.131776]
[1643812871625,0.25417753,37913.0,37909.0,0.131776]
[1643812871825,0.00066253,37912.0,37909.0,0.131776]
[1643812872278,0.00066253,37912.0,37892.0,0.00798606]
[1643812872279,0.8,37909.0,37892.0,0.00798606]
[1643812872474,2.26220156,37908.0,37894.0,0.5]
[1643812872772,2.26220156,37908.0,37890.0,0.20046]
[1643812872773,0.06593574,37904.0,37890.0,0.20046]
[1643812872973,0.06593574,37904.0,37878.0,0.80983173]
[1643812872974,1.63323128,37903.0,37878.0,0.80983173]
[1643812873173,1.63323128,37903.0,37877.0,0.43252996]
[1643812873174,0.26104272,37887.0,37877.0,0.43252996]
[1643812873472,1.5387,37891.0,37877.0,0.464217]
[1643812873778,0.24431257,37896.0,37882.0,0.00731926]
[1643812873974,0.24431257,37896.0,37888.0,0.06594]
[1643812874172,0.3099088,37895.0,37888.0,0.06594]
[1643812874472,0.24431257,37896.0,37888.0,0.06594]
[1643812874672,0.3099088,37899.0,37891.0,0.07948929]
[1643812874876,0.10014,37899.0,37892.0,0.20004]
[1643812875074,0.10014,37899.0,37893.0,0.15685048]
[1643812875271,0.10014,37899.0,37893.0,0.25685048]
[1643812875473,0.10014,37899.0,37897.0,0.2007]
[1643812875735,1.03364818,37898.0,37897.0,0.2007]
[1643812875924,0.75,37898.0,37897.0,0.2007]
[1643812876123,0.75,37898.0,37897.0,0.266626]
[1643812876524,0.75,37898.0,37897.0,0.366626]
[1643812876925,0.7829,37900.0,37897.0,0.366626]
[1643812877127,0.00066142,37901.0,37898.0,0.0485]
[1643812877325,0.3099088,37908.0,37899.0,0.192721]
[1643812877530,0.3099088,37908.0,37900.0,0.0485]
[1643812877725,0.3099088,37908.0,37902.0,0.065913]
[1643812877726,0.24545378,37907.0,37902.0,0.065913]
[1643812877926,0.76246142,37909.0,37902.0,0.16862585]
[1643812878126,0.76246142,37909.0,37902.0,0.21862585]
[1643812878428,0.76246142,37909.0,37902.0,0.16862585]
[1643812878625,1.07237022,37909.0,37902.0,0.065913]
[1643812878825,0.76246142,37909.0,37902.0,0.065913]
[1643812879027,1.07237022,37909.0,37902.0,0.065913]
[1643812879228,0.76246142,37909.0,37902.0,0.065913]
[1643812879681,0.76246142,37909.0,37908.0,0.15532837]
[1643812879682,0.67151407,37909.0,37908.0,0.15532837]
[1643812880882,0.67117929,37909.0,37908.0,0.15532837]
[1643812881082,0.67117929,37909.0,37908.0,0.065912]
[1643812881283,0.98458663,37909.0,37908.0,0.065912]
[1643812881483,0.67117929,37909.0,37908.0,0.065912]
[1643812881884,1.27117929,37909.0,37908.0,0.060912]
[1643812882086,0.67117929,37909.0,37908.0,0.060912]
[1643812882987,0.00066163,37910.0,37908.0,0.37431934]
[1643812883234,0.00066163,37910.0,37909.0,0.1]
[1643812883428,3.3892,37918.0,37909.0,0.1444]
[1643812883633,3.3892,37918.0,37911.0,0.197675]
[1643812883828,3.3892,37918.0,37912.0,0.0444]
[1643812884027,3.3892,37918.0,37913.0,0.065891]
[1643812884227,3.3892,37918.0,37914.0,0.0444]
[1643812884828,3.3892,37918.0,37915.0,0.20088]
[1643812885233,3.38986183,37918.0,37915.0,0.20088]
[1643812886029,2.99453283,37918.0,37915.0,0.20088]
[1643812886229,2.99364737,37918.0,37914.0,0.1444]
[1643812886430,0.00066183,37918.0,37916.0,0.20052]
[1643812886632,0.688,37921.0,37916.0,0.20052]
[1643812886832,0.688,37921.0,37917.0,0.065882]
[1643812887087,0.29271,37921.0,37917.0,0.39493778]
[1643812887287,0.47736365,37927.0,37918.0,0.05]
[1643812887486,0.47736365,37927.0,37920.0,0.197631]
[1643812887891,0.28724276,37926.0,37920.0,0.48860685]
[1643812888085,0.31003922,37926.0,37920.0,0.48860685]
[1643812888486,0.27245266,37923.0,37920.0,0.48860685]
[1643812888685,0.28265351,37926.0,37920.0,0.48860685]
[1643812888886,0.47236365,37927.0,37920.0,0.48860685]
[1643812889088,0.03676365,37927.0,37921.0,0.1]
[1643812889286,0.03676365,37927.0,37922.0,0.065885]
[1643812889885,0.00051868,37926.0,37922.0,0.065885]
[1643812890924,0.03676365,37927.0,37922.0,0.065485]
[1643812891323,0.0005188,37926.0,37922.0,0.065485]
[1643812892124,0.03676365,37927.0,37922.0,0.065485]
[1643812892626,0.0005188,37926.0,37922.0,0.065485]
[1643812892925,0.29476633,37926.0,37922.0,0.065485]
[1643812893127,0.0005188,37926.0,37922.0,0.065485]
[1643812893323,0.10265243,37927.0,37922.0,0.065485]
[1643812893523,0.10265243,37927.0,37922.0,0.06479123]
[1643812893724,0.00066192,37926.0,37922.0,0.06479123]
[1643812894574,0.09265243,37927.0,37922.0,0.06479123]
[1643812894774,0.09265243,37927.0,37922.0,1.23e-06]
[1643812894775,0.2242967,37925.0,37922.0,1.23e-06]
[1643812894978,0.2242967,37925.0,37912.0,0.00047762]
[1643812894979,0.30053582,37924.0,37912.0,0.00047762]
[1643812895175,0.30063928,37924.0,37912.0,0.00047762]
[1643812895377,0.7282,37924.0,37912.0,0.00047762]
[1643812895578,2.35106025,37924.0,37914.0,0.131816]
[1643812895783,0.01629563,37920.0,37906.0,0.31544814]
[1643812895978,0.21681151,37910.0,37906.0,0.31544814]
[1643812896176,0.21681151,37910.0,37903.0,0.29082892]
[1643812897176,0.21681151,37910.0,37908.0,0.131835]
[1643812897678,0.21681151,37910.0,37899.0,7.2e-05]
[1643812897679,0.06592079,37908.0,37899.0,7.2e-05]
[1643812897876,0.8,37906.0,37886.0,2.69464452]
[1643812898077,0.31544814,37905.0,37897.0,0.131872]
[1643812898538,0.80613975,37906.0,37896.0,0.00047858]
[1643812898539,0.28185179,37902.0,37896.0,0.00047858]
[1643812898740,0.06593661,37901.0,37896.0,0.00047858]
[1643812899137,0.31544814,37900.0,37897.0,0.065935]
[1643812899337,0.06593661,37901.0,37897.0,0.065935]
[1643812899536,0.06593661,37901.0,37895.0,0.131872]
[1643812899736,0.06593661,37901.0,37897.0,0.00047857]
[1643812899936,0.25219251,37900.0,37897.0,0.00047857]
[1643812900136,1.03798057,37898.0,37897.0,0.00047857]
[1643812900735,1.03798057,37898.0,37895.0,0.131872]
[1643812900942,0.031868,37895.0,37891.0,0.131882]
[1643812901137,0.34731614,37895.0,37891.0,0.131882]
[1643812901338,0.29710582,37894.0,37891.0,0.131882]
[1643812901537,0.27636849,37894.0,37891.0,0.131882]
[1643812901738,0.31213849,37894.0,37891.0,0.126682]
[1643812901980,0.06595198,37893.0,37888.0,0.195921]
[1643812902180,0.25,37894.0,37888.0,0.195921]
[1643812902379,0.25,37894.0,37888.0,0.190921]
[1643812902578,0.25,37894.0,37891.0,0.131882]
[1643812902779,0.7822,37898.0,37891.0,0.131882]
[1643812903082,0.52676709,37896.0,37891.0,0.131882]
[1643812903284,0.52676709,37896.0,37893.0,0.00044478]
[1643812903483,0.52676709,37896.0,37893.0,0.13233778]
[1643812904081,0.27027764,37895.0,37893.0,0.13233778]
[1643812904283,0.27027764,37895.0,37893.0,0.131893]
[1643812904484,0.27027764,37895.0,37893.0,0.13233778]
[1643812904782,0.27027764,37895.0,37893.0,0.13197226]
[1643812904983,0.27027764,37895.0,37893.0,0.00044478]
[1643812905183,0.27027764,37895.0,37891.0,0.06138478]
[1643812905484,0.27027764,37895.0,37885.0,0.001]
[1643812905485,0.06593959,37894.0,37885.0,0.001]
[1643812905736,0.06593959,37894.0,37881.0,0.002]
[1643812905737,0.65245082,37893.0,37881.0,0.002]
[1643812905929,0.350452,37892.0,37881.0,0.002]
[1643812906135,0.350452,37892.0,37876.0,0.065966]
[1643812906136,1.10118382,37891.0,37876.0,0.065966]
[1643812906329,1.10118382,37891.0,37874.0,0.001]
[1643812906330,0.91963758,37876.0,37874.0,0.001]